bitfinex-derivatives/quotes_BTCF0:USTF0_20241217
["timestamp","ask_amount","ask_price","bid_price","bid_amount"]
[1734407201533,0.8416198,106890.0,106880.0,0.00010913]
[1734407202627,0.9029198,106890.0,106880.0,0.00010913]
[1734407203419,0.92176742,106890.0,106880.0,0.00010913]
[1734407210235,0.04678,106880.0,106860.0,0.58161558]
[1734407210431,0.44921292,106870.0,106850.0,0.96816708]
[1734407210638,0.08841292,106860.0,106850.0,0.64581558]
[1734407212243,0.08841292,106860.0,106850.0,0.28501558]
[1734407213239,0.08841292,106860.0,106850.0,0.0642]
[1734407213838,0.44929471,106860.0,106850.0,0.28501558]
[1734407214037,0.44929471,106860.0,106850.0,0.0642]
[1734407214244,0.49608171,106860.0,106850.0,0.0642]
[1734407214442,0.49608171,106860.0,106840.0,0.64251558]
[1734407214643,0.43405292,106850.0,106840.0,0.64251558]
[1734407214946,0.43405292,106850.0,106840.0,0.28171558]
[1734407214947,0.79485292,106850.0,106840.0,0.28171558]
[1734407215244,0.79485292,106850.0,106830.0,0.0606]
[1734407215245,0.84164492,106850.0,106830.0,0.0606]
[1734407215443,0.44921292,106840.0,106830.0,0.0606]
[1734407215841,0.49600892,106840.0,106830.0,0.0601]
[1734407216337,0.13520892,106840.0,106830.0,0.0601]
[1734407216933,0.13520892,106840.0,106830.0,0.0606]
[1734407217848,0.13520892,106840.0,106830.0,0.0601]
[1734407218244,0.13520892,106840.0,106820.0,0.42240026]
[1734407218444,0.13520892,106840.0,106820.0,0.36090026]
[1734407218953,0.08841292,106830.0,106820.0,0.36140026]
[1734407219649,0.08841292,106830.0,106820.0,0.40820526]
[1734407219837,0.08841292,106830.0,106820.0,0.40770526]
[1734407220046,0.813033,106850.0,106820.0,0.40770526]
[1734407220047,0.08841292,106840.0,106820.0,0.40770526]
[1734407220739,0.08841292,106830.0,106820.0,0.04690526]
[1734407220951,0.08841292,106830.0,106820.0,0.04740526]
[1734407221750,0.08841292,106830.0,106820.0,0.40820526]
[1734407221939,0.08841292,106830.0,106820.0,0.04690526]
[1734407222251,0.08841292,106830.0,106820.0,0.40770526]
[1734407222451,0.40544,106850.0,106830.0,0.046796]
[1734407222639,0.49385292,106850.0,106840.0,0.3608]
[1734407228349,0.49385292,106850.0,106830.0,0.046796]
[1734407228548,0.08841292,106840.0,106830.0,0.407596]
[1734407229254,0.44921292,106840.0,106820.0,0.04690426]
[1734407229451,0.08852439,106830.0,106820.0,0.36090026]
[1734407229652,0.08852439,106830.0,106820.0,0.00302523]
[1734407230049,0.51852439,106830.0,106820.0,0.00302523]
[1734407230849,0.51852439,106830.0,106820.0,0.00010026]
[1734407231048,0.51852439,106830.0,106820.0,0.00302528]
[1734407231559,0.51852439,106830.0,106820.0,0.00010026]
[1734407232849,0.08852439,106830.0,106820.0,0.00010026]
[1734407233257,0.53312414,106830.0,106820.0,0.00010026]
[1734407233560,0.97514973,106830.0,106820.0,0.00010026]
[1734407234265,0.54514973,106830.0,106820.0,0.00010026]
[1734407234952,0.60754973,106830.0,106820.0,0.00010026]
[1734407239459,0.71906151,106830.0,106820.0,0.00010026]
[1734407240956,0.76586251,106830.0,106820.0,0.00010026]
[1734407241360,0.68206276,106830.0,106820.0,0.00010026]
[1734407241966,0.76600628,106830.0,106820.0,0.00010026]
[1734407242354,0.68206276,106830.0,106820.0,0.00010026]
[1734407242554,0.70076964,106830.0,106820.0,0.00010026]
[1734407254562,0.64023467,106830.0,106820.0,0.00010026]
[1734407254761,0.11202781,106840.0,106820.0,1.37773376]
[1734407254968,1e-08,106850.0,106840.0,0.046796]
[1734407254969,0.01915266,106850.0,106840.0,0.046796]
[1734407255165,0.1255,106870.0,106840.0,0.7921951]
[1734407255360,0.42070841,106880.0,106860.0,0.49599992]
[1734407255567,0.42070841,106880.0,106870.0,0.44921292]
[1734407255568,0.35740841,106880.0,106870.0,0.44921292]
[1734407255870,0.35747766,106880.0,106870.0,0.3608]
[1734407256779,0.34586925,106880.0,106870.0,0.3608]
[1734407257271,0.36485716,106880.0,106870.0,0.3608]
[1734407257488,0.36485716,106880.0,106870.0,0.407583]
[1734407258177,0.36485716,106880.0,106870.0,0.62977783]
[1734407258372,0.36485716,106880.0,106870.0,0.407583]
[1734407265769,0.36485716,106880.0,106870.0,0.49599592]
[1734407265977,0.34586925,106880.0,106870.0,0.49599592]
[1734407266283,0.34586925,106880.0,106870.0,0.56299592]
[1734407270672,0.34586925,106880.0,106870.0,0.57226183]
[1734407271975,0.34586925,106880.0,106870.0,0.93306183]
[1734407275183,0.1311,106910.0,106900.0,0.04677]
[1734407275374,0.14039213,106910.0,106900.0,0.40757]
[1734407275980,0.15889688,106910.0,106900.0,0.40757]
[1734407276183,0.15900948,106910.0,106900.0,0.40757]
[1734407276385,0.15900948,106910.0,106900.0,0.49598292]
[1734407276583,0.14050473,106910.0,106900.0,0.49598292]
[1734407277274,0.0001126,106910.0,106900.0,0.49598292]
[1734407283892,0.0001126,106910.0,106900.0,0.66182483]
[1734407284088,0.0001126,106910.0,106900.0,0.66179247]
[1734407284393,0.0001126,106910.0,106900.0,0.71814539]
[1734407284687,6e-07,106910.0,106900.0,1.50617672]
[1734407284889,6e-07,106910.0,106900.0,1.34478189]
[1734407285284,6e-07,106910.0,106900.0,1.6754545]
[1734407285678,6e-07,106910.0,106900.0,1.67554864]
[1734407286196,6e-07,106910.0,106900.0,1.34487603]
[1734407286589,6e-07,106910.0,106900.0,1.34043127]
[1734407287289,6e-07,106910.0,106900.0,1.67110388]
[1734407287893,6e-07,106910.0,106900.0,1.3933217]
[1734407288086,6e-07,106910.0,106900.0,1.33904036]
[1734407288387,6e-07,106910.0,106900.0,1.3933217]
[1734407288588,0.1889,106940.0,106930.0,0.046757]
[1734407288789,0.1889,106940.0,106930.0,0.8522928]
[1734407288982,0.1884,106940.0,106930.0,0.8522928]
[1734407289498,0.18850768,106940.0,106930.0,0.8522928]
[1734407290191,0.18850768,106940.0,106930.0,1.01812958]
[1734407290384,0.12760768,106940.0,106930.0,1.01812958]
[1734407290587,0.06690768,106940.0,106930.0,1.01812958]
[1734407292691,6.8e-07,106940.0,106930.0,1.01812958]
[1734407293195,6.8e-07,106940.0,106930.0,1.08152958]
[1734407293795,6.8e-07,106940.0,106930.0,1.60264529]
[1734407295398,6.8e-07,106940.0,106930.0,1.23924529]
[1734407295592,6.8e-07,106940.0,106930.0,0.8522928]
[1734407299200,6.8e-07,106940.0,106930.0,1.01812958]
[1734407299395,6.8e-07,106940.0,106930.0,0.8522928]
[1734407299597,6.8e-07,106940.0,106930.0,1.01812958]
[1734407299800,6.8e-07,106940.0,106930.0,0.8522928]
[1734407300113,6.8e-07,106940.0,106930.0,1.01812958]
[1734407300410,6.8e-07,106940.0,106930.0,1.23924529]
[1734407300801,6.8e-07,106940.0,106930.0,1.24861092]
[1734407301304,6.8e-07,106940.0,106930.0,1.08277414]
[1734407305816,6.8e-07,106940.0,106930.0,1.35916878]
[1734407306315,6.8e-07,106940.0,106930.0,1.34508758]
[1734407310318,6.8e-07,106940.0,106930.0,1.56658474]
[1734407310822,6.8e-07,106940.0,106930.0,1.08315559]
[1734407313217,6.8e-07,106940.0,106930.0,1.3483876]
[1734407316729,6.8e-07,106940.0,106930.0,0.6267876]
[1734407316925,6.8e-07,106940.0,106930.0,1.3483876]
[1734407317316,6.8e-07,106940.0,106930.0,1.40266557]
[1734407317517,6.8e-07,106940.0,106930.0,1.07199296]
[1734407318111,6.8e-07,106940.0,106930.0,1.40266557]
[1734407319224,0.1256,106960.0,106950.0,0.2146196]
[1734407319426,0.1256,106960.0,106950.0,0.9362196]
[1734407319729,0.1256,106960.0,106950.0,0.8522838]
[1734407320225,0.12569575,106960.0,106950.0,0.8522838]
[1734407320628,0.12569575,106960.0,106950.0,1.33626903]
[1734407321021,0.12569575,106960.0,106950.0,1.66903182]
[1734407321226,0.12569575,106960.0,106950.0,1.33626903]
[1734407324721,0.12569575,106960.0,106950.0,1.25233323]
[1734407325032,0.36835874,106960.0,106950.0,1.10979979]
[1734407325226,0.32161474,106960.0,106950.0,1.10979979]
[1734407325428,0.23767894,106960.0,106950.0,1.10979979]
[1734407325631,0.28442294,106960.0,106950.0,0.74899979]
[1734407325832,0.28442294,106960.0,106950.0,0.52718036]
[1734407326623,0.28442294,106960.0,106950.0,0.16638036]
[1734407327232,0.28442294,106960.0,106950.0,0.38819979]
[1734407329028,0.29180115,106960.0,106950.0,0.38819979]
[1734407329937,0.37573695,106960.0,106950.0,0.38819979]
[1734407330140,0.37573695,106960.0,106950.0,0.16638036]
[1734407330326,0.40373274,106960.0,106950.0,0.16638036]
[1734407330828,0.37572447,106960.0,106950.0,0.16638036]
[1734407331141,0.37571774,106960.0,106950.0,0.16638036]
[1734407331937,0.37571774,106960.0,106950.0,0.38819979]
[1734407332432,0.37571774,106960.0,106950.0,0.16638036]
[1734407333540,0.29178194,106960.0,106950.0,0.16638036]
[1734407336323,1.17649672,106960.0,106950.0,0.16638036]
[1734407336529,0.1306838,106950.0,106930.0,0.85992176]
[1734407336729,0.4065,106940.0,106930.0,0.84593212]
[1734407336935,0.4065,106940.0,106930.0,1.06771177]
[1734407337136,0.4065,106940.0,106930.0,0.85988198]
[1734407337434,0.4065,106940.0,106930.0,0.58257965]
[1734407343031,0.41437526,106940.0,106930.0,0.58257965]
[1734407347237,0.41437526,106940.0,106930.0,0.3608]
[1734407347938,0.46112726,106940.0,106930.0,0.3608]
[1734407348146,0.46112726,106940.0,106920.0,0.68993965]
[1734407348436,0.0839358,106930.0,106920.0,0.22177965]
[1734407348635,0.1970928,106930.0,106910.0,0.90664698]
[1734407348842,0.1970928,106930.0,106910.0,1.09931208]
[1734407349028,0.1970928,106930.0,106910.0,0.90664698]
[1734407349338,0.30906611,106930.0,106910.0,0.62934465]
[1734407349541,0.66986611,106930.0,106910.0,0.62934465]
[1734407350833,0.08401878,106920.0,106910.0,0.58257965]
[1734407351036,0.49157978,106920.0,106900.0,0.82374279]
[1734407351236,0.49157978,106920.0,106900.0,0.82324279]
[1734407352328,0.49157978,106920.0,106900.0,0.75944279]
[1734407353639,0.046765,106910.0,106900.0,0.71267379]
[1734407353942,0.1307008,106910.0,106900.0,9.414e-05]
[1734407355334,0.4915008,106910.0,106900.0,9.414e-05]
[1734407355643,0.66547411,106910.0,106900.0,9.414e-05]
[1734407358960,0.58479776,106920.0,106900.0,0.49159794]
[1734407358961,0.49968119,106920.0,106900.0,0.49159794]
[1734407359251,0.38770788,106920.0,106910.0,0.0604]
[1734407359750,0.02690788,106920.0,106910.0,0.4862]
[1734407360148,0.02690788,106920.0,106910.0,0.6169008]
[1734407360949,0.02690788,106920.0,106910.0,0.532965]
[1734407363243,0.11084368,106920.0,106900.0,0.69304079]
[1734407363440,0.02690788,106920.0,106910.0,0.3608]
[1734407363843,0.02690788,106920.0,106910.0,0.407565]
[1734407365949,0.02690788,106920.0,106910.0,0.046765]
[1734407366150,0.11084368,106920.0,106910.0,0.046765]
[1734407366948,0.02690788,106920.0,106910.0,0.046765]
[1734407367457,0.02690788,106920.0,106910.0,0.407565]
[1734407370050,0.02690788,106920.0,106910.0,0.4915008]
[1734407370460,0.02690788,106920.0,106910.0,0.407565]
[1734407371458,0.02690788,106920.0,106910.0,0.62934465]
[1734407372848,0.01904684,106920.0,106910.0,0.71328045]
[1734407373459,0.01904684,106920.0,106910.0,0.62934465]
[1734407381367,0.01904684,106920.0,106910.0,0.26854465]
[1734407381660,0.01904684,106920.0,106910.0,0.99014465]
[1734407386478,0.10291824,106920.0,106910.0,0.99014465]
[1734407386765,0.01904684,106920.0,106910.0,0.99014465]
[1734407387166,0.10291824,106920.0,106910.0,1.45450628]
[1734407387368,0.10291824,106920.0,106910.0,1.23272663]
[1734407388058,0.24123139,106920.0,106900.0,0.75126547]
[1734407388258,0.19614514,106910.0,106900.0,1.16174407]
[1734407388462,0.62614514,106910.0,106900.0,0.69581511]
[1734407388864,0.19614514,106910.0,106900.0,0.69581511]
[1734407389064,0.19614514,106910.0,106900.0,0.62951511]
[1734407389268,0.25125076,106910.0,106900.0,0.62951511]
[1734407389472,0.25126192,106910.0,106900.0,0.62951511]
[1734407389974,0.16718839,106910.0,106900.0,0.62951511]
[1734407390170,0.19614347,106910.0,106900.0,0.62951511]
[1734407391365,0.11208277,106910.0,106900.0,0.62951511]
[1734407392470,0.1961151,106910.0,106900.0,0.62951511]
[1734407392675,0.19611485,106910.0,106900.0,0.62951511]
[1734407392857,0.28810342,106910.0,106900.0,0.58274611]
[1734407393062,0.56487134,106910.0,106900.0,9.414e-05]
[1734407393262,0.39081532,106910.0,106900.0,9.414e-05]
[1734407394364,0.25083634,106910.0,106900.0,9.414e-05]
[1734407396364,0.61163634,106910.0,106900.0,9.414e-05]
[1734407396563,0.63953255,106910.0,106900.0,9.414e-05]
[1734407400575,0.657976,106910.0,106900.0,9.414e-05]
[1734407401275,0.657976,106910.0,106870.0,0.76735958]
[1734407401276,0.911211,106910.0,106870.0,0.76735958]
[1734407401473,0.08399635,106880.0,106870.0,0.76735958]
[1734407401682,0.27971083,106890.0,106870.0,0.76735958]
[1734407401873,0.34411083,106890.0,106870.0,0.76735958]
[1734407402273,0.08387763,106890.0,106880.0,0.407579]
[1734407402474,0.54127448,106900.0,106880.0,0.407579]
[1734407402679,8.479e-05,106890.0,106880.0,0.49157535]
[1734407402880,8.479e-05,106890.0,106880.0,0.768379]
[1734407406270,8.479e-05,106890.0,106880.0,0.99023097]
[1734407406480,8.479e-05,106890.0,106880.0,0.768379]
[1734407411197,8.479e-05,106890.0,106880.0,0.99023097]
[1734407412988,0.05521964,106890.0,106880.0,0.99023097]
[1734407413388,0.05521964,106890.0,106880.0,0.26863097]
[1734407413589,0.05521964,106890.0,106880.0,0.99023097]
[1734407413996,0.0740921,106890.0,106880.0,0.99023097]
[1734407415804,0.15796973,106890.0,106880.0,0.62943097]
[1734407417095,0.26980658,106890.0,106880.0,0.62943097]
[1734407418198,0.18592895,106890.0,106880.0,0.62943097]
[1734407418390,0.18592895,106890.0,106880.0,0.58265197]
[1734407418590,0.25422895,106890.0,106880.0,0.58265197]
[1734407418800,0.25422895,106890.0,106880.0,0.22185197]
[1734407419108,0.2627742,106890.0,106880.0,0.58265197]
[1734407421002,0.13933935,106890.0,106880.0,0.58265197]
[1734407421198,0.1944742,106890.0,106880.0,0.58265197]
[1734407421600,0.27855223,106890.0,106880.0,0.63810233]
[1734407421803,0.27855223,106890.0,106880.0,0.86004937]
[1734407422004,0.22341738,106890.0,106880.0,0.96196322]
[1734407422195,0.13933935,106890.0,106880.0,0.74001618]
[1734407422696,0.22343274,106890.0,106880.0,0.74001618]
[1734407422900,0.13933935,106890.0,106880.0,0.74728133]
[1734407423100,0.1944742,106890.0,106880.0,0.74728133]
[1734407423296,0.27857576,106890.0,106880.0,0.74728133]
[1734407423696,0.13933935,106890.0,106880.0,0.9317602]
[1734407424706,0.1307941,106890.0,106880.0,0.9317602]
[1734407424903,0.10306629,106890.0,106880.0,0.74728133]
[1734407425108,0.10306629,106890.0,106880.0,1.08004412]
[1734407425307,0.10306629,106890.0,106880.0,0.80241618]
[1734407425504,0.10306629,106890.0,106880.0,1.13517897]
[1734407425708,0.10306629,106890.0,106880.0,0.80241618]
[1734407426011,0.10306629,106890.0,106880.0,0.74728133]
[1734407426808,0.10306629,106890.0,106880.0,1.08004412]
[1734407427104,0.21490314,106890.0,106880.0,0.74728133]
[1734407427908,0.19603068,106890.0,106880.0,0.74728133]
[1734407428102,0.08420072,106890.0,106880.0,0.85755103]
[1734407428308,0.08420072,106890.0,106880.0,1.19031382]
[1734407428504,0.08420072,106890.0,106880.0,0.91301149]
[1734407429493,8.479e-05,106890.0,106880.0,0.91301149]
[1734407431200,8.479e-05,106890.0,106880.0,0.85787664]
[1734407432105,0.05521964,106890.0,106880.0,0.74034179]
[1734407433006,8.479e-05,106890.0,106880.0,0.74034179]
[1734407433196,0.08420072,106890.0,106880.0,0.68498456]
[1734407435405,8.479e-05,106890.0,106880.0,0.68498456]
[1734407435600,0.22090072,106890.0,106880.0,0.68498456]
[1734407436611,0.22090072,106890.0,106880.0,0.74011941]
[1734407440806,0.08420072,106890.0,106880.0,0.79525426]
[1734407441807,0.08420072,106890.0,106880.0,0.8036524]
[1734407442001,0.08420072,106890.0,106880.0,0.74851755]
[1734407443704,0.08420072,106890.0,106880.0,0.8036524]
[1734407443904,0.08420072,106890.0,106880.0,0.8689524]
[1734407444106,0.08420072,106890.0,106880.0,0.81381755]
[1734407444414,8.479e-05,106890.0,106880.0,0.81381755]
[1734407445007,8.479e-05,106890.0,106880.0,0.8689524]
[1734407446914,8.479e-05,106890.0,106880.0,0.92430963]
[1734407450002,8.479e-05,106890.0,106880.0,0.86917478]
[1734407452514,0.08420072,106890.0,106880.0,0.86917478]
[1734407453316,8.479e-05,106890.0,106880.0,0.86917478]
[1734407453508,0.08420072,106890.0,106880.0,0.86917478]
[1734407456608,0.08420072,106890.0,106880.0,0.80387478]
[1734407457108,0.14920072,106890.0,106880.0,0.80387478]
[1734407458617,0.21410072,106890.0,106880.0,0.80387478]
[1734407459303,0.26923557,106890.0,106880.0,0.685399]
[1734407459508,0.38107242,106890.0,106880.0,0.685399]
[1734407459915,0.29695649,106890.0,106880.0,0.685399]
[1734407460815,0.29695649,106890.0,106880.0,0.86989798]
[1734407461217,0.29695649,106890.0,106880.0,0.87040243]
[1734407462216,0.29695649,106890.0,106880.0,0.87176639]
[1734407462928,0.29695649,106890.0,106870.0,0.27782]
[1734407462929,1.04103347,106890.0,106870.0,0.27782]
[1734407463114,0.1769697,106880.0,106860.0,0.685407]
[1734407463316,0.26790128,106870.0,106860.0,0.87393753]
[1734407463718,0.2959991,106870.0,106860.0,0.407587]
[1734407464417,0.26790032,106870.0,106860.0,0.407587]
[1734407467628,0.26790032,106870.0,106860.0,0.3608]
[1734407467825,0.26790032,106870.0,106860.0,0.04092964]
[1734407468127,0.26790032,106870.0,106860.0,0.3608]
[1734407469525,0.27655734,106870.0,106860.0,0.3608]
[1734407470416,0.27655734,106870.0,106850.0,0.40770701]
[1734407470627,0.05513485,106860.0,106850.0,0.40770701]
[1734407470829,0.40077485,106860.0,106850.0,0.40770701]
[1734407473430,0.46557485,106860.0,106850.0,0.40770701]
[1734407477220,0.34564,106860.0,106850.0,0.40770701]
[1734407477419,0.40077485,106860.0,106850.0,0.53410701]
[1734407483539,0.41973455,106860.0,106850.0,0.53410701]
[1734407485043,0.41973455,106860.0,106850.0,0.47090701]
[1734407485249,0.47498814,106860.0,106850.0,0.36091601]
[1734407485538,0.60584061,106860.0,106850.0,0.04104565]
[1734407485839,1.39097546,106860.0,106840.0,0.3608]
[1734407486036,0.3066697,106850.0,106840.0,0.3608]
[1734407486339,0.43752717,106850.0,106840.0,0.3608]
[1734407486554,0.43752717,106850.0,106830.0,0.70612]
[1734407486743,0.1102697,106840.0,106830.0,0.52751034]
[1734407487140,0.19433517,106840.0,106830.0,0.52751034]
[1734407487333,0.29626602,106840.0,106830.0,0.16671034]
[1734407487540,0.29626602,106840.0,106820.0,0.52751034]
[1734407487541,0.76931315,106840.0,106820.0,0.52751034]
[1734407487845,0.19422423,106830.0,106820.0,0.52751034]
[1734407488030,0.13908938,106830.0,106820.0,0.52751034]
[1734407490240,0.13908938,106830.0,106820.0,0.3608]
[1734407491136,0.19422423,106830.0,106820.0,0.3608]
[1734407491939,0.1102697,106830.0,106820.0,0.3608]
[1734407492345,0.2208707,106830.0,106820.0,0.3608]
[1734407492536,0.30482523,106830.0,106810.0,0.64181834]
[1734407492739,0.5240897,106820.0,106810.0,0.64181834]
[1734407494237,0.5240897,106820.0,106810.0,0.475108]
[1734407494831,0.5240897,106820.0,106810.0,0.4283]
[1734407495431,0.5240897,106820.0,106810.0,0.0675]
[1734407495637,0.5240897,106820.0,106810.0,0.4283]
[1734407497047,0.41382,106820.0,106810.0,0.4283]
[1734407497241,0.5240897,106820.0,106810.0,0.4283]
[1734407497434,0.46895485,106820.0,106810.0,0.4283]
[1734407498649,0.34572,106820.0,106810.0,0.53024385]
[1734407498845,0.34572,106820.0,106810.0,0.88458904]
[1734407499148,0.34572,106820.0,106810.0,0.82945419]
[1734407499748,0.34572,106820.0,106810.0,0.66274385]
[1734407500249,0.00883792,106840.0,106830.0,0.046801]
[1734407500448,8.288e-05,106840.0,106830.0,0.82353585]
[1734407501940,8.288e-05,106840.0,106830.0,0.768401]
[1734407506552,8.288e-05,106840.0,106830.0,0.77739679]
[1734407509448,8.288e-05,106840.0,106830.0,0.8614745]
[1734407510053,0.43008288,106840.0,106830.0,0.8614745]
[1734407511056,0.43008288,106840.0,106830.0,0.77739679]
[1734407512565,8.288e-05,106840.0,106830.0,0.77739679]
[1734407512745,0.08416059,106840.0,106830.0,0.77739679]
[1734407513751,0.08416059,106840.0,106830.0,0.768401]
[1734407514257,0.16811512,106840.0,106830.0,0.768401]
[1734407514461,0.08416059,106840.0,106830.0,0.768401]
[1734407514849,0.08403741,106840.0,106830.0,0.768401]
[1734407515050,8.288e-05,106840.0,106830.0,0.768401]
[1734407515250,8.288e-05,106840.0,106830.0,0.898301]
[1734407517265,8.288e-05,106840.0,106830.0,0.98237871]
[1734407517563,8.288e-05,106840.0,106830.0,1.04527871]
[1734407526058,8.288e-05,106840.0,106830.0,1.01637437]
[1734407527262,0.05525625,106840.0,106830.0,0.834001]
[1734407527562,0.20441078,106840.0,106830.0,0.834001]
[1734407527762,0.27161078,106840.0,106830.0,0.768401]
[1734407528859,0.38377503,106840.0,106830.0,0.768401]
[1734407529260,0.40178987,106840.0,106830.0,0.768401]
[1734407529461,0.40178987,106840.0,106830.0,0.407601]
[1734407529663,0.54176885,106840.0,106830.0,0.407601]
[1734407529966,0.51553831,106840.0,106830.0,0.407601]
[1734407530553,0.37555933,106840.0,106830.0,0.407601]
[1734407531159,0.51553831,106840.0,106830.0,0.407601]
[1734407531359,0.37555933,106840.0,106830.0,0.407601]
[1734407532463,0.26339508,106840.0,106820.0,0.407604]
[1734407532660,0.3464996,106830.0,106820.0,0.407604]
[1734407532867,0.608141,106830.0,106820.0,0.407604]
[1734407533570,0.69219959,106830.0,106820.0,0.407604]
[1734407533958,0.608141,106830.0,106820.0,0.407604]
[1734407534162,0.5240248,106830.0,106820.0,0.407604]
[1734407534365,0.60807669,106830.0,106820.0,0.407604]
[1734407534761,0.49597189,106830.0,106820.0,0.407604]
[1734407536773,0.73899389,106830.0,106820.0,0.3608]
[1734407537665,0.608141,106830.0,106810.0,0.41673619]
[1734407537881,0.08401732,106820.0,106810.0,0.41673619]
[1734407538261,0.15201732,106820.0,106810.0,0.69495962]
[1734407538462,0.068,106820.0,106810.0,0.41673619]
[1734407538665,0.30363352,106820.0,106810.0,0.407608]
[1734407538867,0.41573832,106820.0,106810.0,0.407608]
[1734407539275,0.331721,106820.0,106810.0,0.407608]
[1734407539474,0.41573034,106820.0,106810.0,0.407608]
[1734407539774,0.41570507,106820.0,106810.0,0.407608]
[1734407540568,0.30360027,106820.0,106810.0,0.407608]
[1734407542585,0.30360027,106820.0,106810.0,0.3608]
[1734407542879,0.41570507,106820.0,106810.0,0.3608]
[1734407543573,0.30360027,106820.0,106810.0,0.3608]
[1734407544167,0.35040527,106820.0,106810.0,0.3608]
[1734407544876,0.046809,106810.0,106800.0,0.1]
[1734407545174,0.27842704,106810.0,106800.0,0.1]
[1734407547376,0.14750184,106810.0,106800.0,0.507614]
[1734407547676,0.0636,106810.0,106800.0,0.507614]
[1734407548679,0.4244,106810.0,106800.0,0.146814]
[1734407548877,1.0047372,106810.0,106790.0,7.049e-05]
[1734407549075,0.72409012,106800.0,106790.0,7.049e-05]
[1734407549271,1.15417974,106800.0,106770.0,0.6305547]
[1734407549471,0.94315992,106790.0,106770.0,0.407625]
[1734407549672,0.58235992,106790.0,106770.0,0.407625]
[1734407550474,0.58235992,106790.0,106770.0,0.408125]
[1734407551277,0.4985162,106790.0,106770.0,0.408125]
[1734407552773,0.4985162,106790.0,106780.0,0.046822]
[1734407552983,0.58235992,106790.0,106780.0,0.046822]
[1734407554478,0.58235992,106790.0,106780.0,0.407622]
[1734407554788,0.3458,106790.0,106780.0,0.4917382]
[1734407554982,8.962e-05,106800.0,106780.0,0.6858382]
[1734407555188,8.962e-05,106800.0,106790.0,0.4917342]
[1734407555385,8.962e-05,106800.0,106790.0,0.407618]
[1734407560275,8.962e-05,106800.0,106790.0,0.41681036]
[1734407564781,8.962e-05,106800.0,106790.0,0.69503379]
[1734407564987,8.962e-05,106800.0,106790.0,0.77914999]
[1734407572685,8.962e-05,106800.0,106790.0,0.69503379]
[1734407576695,8.962e-05,106800.0,106790.0,0.77914999]
[1734407582104,8.962e-05,106800.0,106790.0,0.75024852]
[1734407582603,8.962e-05,106800.0,106790.0,0.80478788]
[1734407583503,8.962e-05,106800.0,106790.0,0.84574008]
[1734407584498,0.08393334,106800.0,106790.0,0.84574008]
[1734407585399,0.08393334,106800.0,106790.0,0.84761137]
[1734407585607,0.08393334,106800.0,106790.0,0.51297729]
[1734407586311,0.08393334,106800.0,106790.0,0.79242561]
[1734407586609,0.08393334,106800.0,106790.0,0.84764034]
[1734407586806,0.08393334,106800.0,106790.0,0.51297729]
[1734407588510,0.08393334,106800.0,106790.0,0.54453649]
[1734407588910,0.08393334,106800.0,106790.0,0.51297729]
[1734407589303,0.08393334,106800.0,106790.0,0.84777575]
[1734407589504,3.4e-07,106800.0,106790.0,0.84777575]
[1734407589711,0.5865848,106820.0,106790.0,0.86819202]
[1734407589910,0.5203848,106820.0,106810.0,1.10252047]
[1734407590112,0.5203848,106820.0,106810.0,1.15829981]
[1734407590319,0.40828,106820.0,106810.0,1.15829981]
[1734407590714,0.4083478,106820.0,106810.0,1.15829981]
[1734407592519,0.4083478,106820.0,106810.0,1.43683557]
[1734407592720,0.4083478,106820.0,106810.0,1.15829981]
[1734407593308,0.4083478,106820.0,106810.0,1.43677091]
[1734407593712,0.4083478,106820.0,106810.0,1.15829981]
[1734407595316,0.4083478,106820.0,106810.0,1.167566]
[1734407596420,0.4083478,106820.0,106810.0,1.11123781]
[1734407600325,0.4083478,106820.0,106810.0,1.44591389]
[1734407601226,0.51877726,106820.0,106810.0,1.38143297]
[1734407601419,0.51877726,106820.0,106810.0,1.04675689]
[1734407601420,0.53226253,106820.0,106810.0,1.04675689]
[1734407601628,0.53226253,106820.0,106810.0,0.768409]
[1734407601823,0.53226253,106820.0,106810.0,1.04675689]
[1734407602129,0.4770478,106820.0,106810.0,1.10197162]
[1734407606931,0.4770478,106820.0,106810.0,1.04675689]
[1734407609929,0.48634998,106820.0,106810.0,1.04675689]
[1734407610926,0.54156471,106820.0,106810.0,1.04675689]
[1734407611532,0.48634998,106820.0,106810.0,1.04675689]
[1734407612629,0.54156471,106820.0,106810.0,1.04675689]
[1734407614037,0.65366951,106820.0,106810.0,1.26950413]
[1734407614337,0.65366951,106820.0,106810.0,1.26950834]
[1734407614540,0.54156471,106820.0,106810.0,1.04675689]
[1734407615235,0.65366951,106820.0,106810.0,1.04675689]
[1734407615535,0.54156471,106820.0,106810.0,1.04675689]
[1734407616130,0.19568471,106820.0,106810.0,1.04675689]
[1734407616335,0.30778951,106820.0,106810.0,1.04675689]
[1734407617040,0.40980924,106820.0,106810.0,1.04675689]
[1734407617236,0.40980924,106820.0,106810.0,1.03218183]
[1734407618532,0.40980924,106820.0,106810.0,0.99123176]
[1734407619134,0.40980924,106820.0,106810.0,0.63043176]
[1734407619341,0.54978822,106820.0,106810.0,0.63043176]
[1734407619839,0.43768342,106820.0,106810.0,0.58362276]
[1734407620245,0.5498385,106820.0,106810.0,0.58362276]
[1734407621236,0.40985952,106820.0,106810.0,0.58362276]
[1734407621740,0.42834288,106820.0,106810.0,0.58362276]
[1734407622848,0.37312815,106820.0,106810.0,0.63043176]
[1734407623136,0.19307765,106820.0,106810.0,0.46282373]
[1734407625939,0.13067765,106820.0,106810.0,0.46282373]
[1734407626337,0.01855116,106820.0,106810.0,0.46282373]
[1734407626538,0.13067765,106820.0,106810.0,0.46282373]
[1734407629045,0.18589238,106820.0,106810.0,0.407609]
[1734407629840,0.24939238,106820.0,106810.0,0.407609]
[1734407631736,0.30460711,106820.0,106810.0,0.407609]
[1734407631941,0.24939238,106820.0,106810.0,0.407609]
[1734407632342,0.30460711,106820.0,106810.0,0.407609]
[1734407632551,0.35141211,106820.0,106810.0,0.407609]
[1734407632852,0.3792646,106820.0,106810.0,0.407609]
[1734407633343,0.49143136,106820.0,106810.0,0.407609]
[1734407633549,0.35145238,106820.0,106810.0,0.407609]
[1734407634645,0.29623765,106820.0,106810.0,0.407609]
[1734407635446,0.3792646,106820.0,106810.0,0.407609]
[1734407636256,0.43621812,106820.0,106810.0,0.44856128]
[1734407636951,0.49143285,106820.0,106810.0,0.44856128]
[1734407638044,0.3792646,106820.0,106810.0,0.407609]
[1734407639358,0.4419646,106820.0,106810.0,0.407609]
[1734407640556,0.55414376,106820.0,106810.0,0.407609]
[1734407642057,0.41416478,106820.0,106810.0,0.407609]
[1734407643555,0.55414376,106820.0,106810.0,0.407609]
[1734407644262,0.41416478,106820.0,106810.0,0.407609]
[1734407644459,0.55414376,106820.0,106810.0,0.407609]
[1734407644655,0.89994376,106820.0,106810.0,0.407609]
[1734407644960,0.75996478,106820.0,106810.0,0.407609]
[1734407645470,0.89994376,106820.0,106810.0,0.407609]
[1734407646655,0.7877646,106820.0,106810.0,0.407609]
[1734407649053,0.7877646,106820.0,106810.0,0.3608]
[1734407649260,0.046809,106810.0,106800.0,0.538312]